[Event "Titled Tuesday Blitz October 25 Late 2022"]
[White "Leenhouts, Koen"]
[Black "Fernandez De La Vara, Arnaldo"]
[WhiteFideId "1008439"]
[BlackFideId "3518388"]
[WhiteElo "2409"]
[BlackElo "2387"]
[Result "1-0"]
[Round "08"]
[TimeControl "180+1"]
[Date "2022.10.26"]
[WhiteClock "0:01:21"]
[BlackClock "0:00:20"]

1. d4 {[%clk 0:03:00]}  c5 {[%clk 0:00:56]} 2. Nf3 {[%clk 0:02:52]}  Nf6 {[%clk 0:00:57]} 3. c4 {[%clk 0:02:50]}  cxd4 {[%clk 0:00:57]} 4. Nxd4 {[%clk 0:02:50]}  g6 {[%clk 0:00:58]} 5. Nc3 {[%clk 0:02:49]}  Bg7 {[%clk 0:00:59]} 6. e4 {[%clk 0:02:50]}  d6 {[%clk 0:00:59]} 7. Be2 {[%clk 0:02:48]}  O-O {[%clk 0:01:00]} 8. O-O {[%clk 0:02:46]}  Nc6 {[%clk 0:01:01]} 9. Be3 {[%clk 0:02:44]}  Bd7 {[%clk 0:01:01]} 10. Rc1 {[%clk 0:02:43]}  Nxd4 {[%clk 0:01:01]} 11. Bxd4 {[%clk 0:02:44]}  Bc6 {[%clk 0:01:01]} 12. f3 {[%clk 0:02:43]}  Nd7 {[%clk 0:01:01]} 13. Be3 {[%clk 0:02:41]}  Nc5 {[%clk 0:01:01]} 14. Qd2 {[%clk 0:02:38]}  Qa5 {[%clk 0:01:00]} 15. b3 {[%clk 0:02:34]}  Rfc8 {[%clk 0:01:00]} 16. Rfd1 {[%clk 0:02:30]}  a6 {[%clk 0:01:00]} 17. Nd5 {[%clk 0:02:23]}  Qd8 {[%clk 0:00:55]} 18. b4 {[%clk 0:02:09]}  Na4 {[%clk 0:00:52]} 19. Rc2 {[%clk 0:01:48]}  b5 {[%clk 0:00:51]} 20. c5 {[%clk 0:01:44]}  e6 {[%clk 0:00:44]} 21. Nb6 {[%clk 0:01:41]}  Nxb6 {[%clk 0:00:40]} 22. cxb6 {[%clk 0:01:41]}  d5 {[%clk 0:00:38]} 23. Kh1 {[%clk 0:01:29]}  Rab8 {[%clk 0:00:24]} 24. Bc5 {[%clk 0:01:28]}  d4 {[%clk 0:00:22]} 25. Bxd4 {[%clk 0:01:24]}  Bxd4 {[%clk 0:00:20]} 26. Qxd4 {[%clk 0:01:23]}  Rxb6 {[%clk 0:00:20]} 27. Qxd8+ {[%clk 0:01:21]} 1-0


[Site "https://www.chess.com"]

[Event "Titled Tuesday Blitz October 25 Late 2022"]
[White "Li, Ben"]
[Black "Pinheiro, Iung Alicio de O."]
[WhiteFideId "2089980"]
[BlackFideId "2104350"]
[WhiteElo "2267"]
[BlackElo "2283"]
[Result "1-0"]
[Round "08"]
[TimeControl "180+1"]
[Date "2022.10.26"]
[WhiteClock "0:00:27"]
[BlackClock "0:00:15"]

1. d4 {[%clk 0:03:00]}  Nf6 {[%clk 0:02:59]} 2. c4 {[%clk 0:03:00]}  g6 {[%clk 0:02:59]} 3. Nc3 {[%clk 0:03:00]}  Bg7 {[%clk 0:02:59]} 4. e4 {[%clk 0:03:00]}  d6 {[%clk 0:02:58]} 5. Nf3 {[%clk 0:02:59]}  O-O {[%clk 0:02:58]} 6. h3 {[%clk 0:02:59]}  Nbd7 {[%clk 0:02:57]} 7. Bg5 {[%clk 0:02:59]}  e5 {[%clk 0:02:58]} 8. d5 {[%clk 0:02:58]}  h6 {[%clk 0:02:51]} 9. Be3 {[%clk 0:02:58]}  Nc5 {[%clk 0:02:46]} 10. Nd2 {[%clk 0:02:57]}  a5 {[%clk 0:02:46]} 11. Be2 {[%clk 0:02:57]}  Bd7 {[%clk 0:02:38]} 12. g4 {[%clk 0:02:57]}  c6 {[%clk 0:02:23]} 13. h4 {[%clk 0:02:56]}  cxd5 {[%clk 0:02:10]} 14. cxd5 {[%clk 0:02:56]}  Ne8 {[%clk 0:02:09]} 15. a4 {[%clk 0:02:55]}  Rb8 {[%clk 0:01:57]} 16. h5 {[%clk 0:02:54]}  g5 {[%clk 0:01:49]} 17. Nc4 {[%clk 0:02:48]}  Nxa4 {[%clk 0:01:31]} 18. Nxa4 {[%clk 0:01:52]}  b5 {[%clk 0:01:22]} 19. Nab6 {[%clk 0:01:16]}  bxc4 {[%clk 0:01:19]} 20. Nxc4 {[%clk 0:01:17]}  a4 {[%clk 0:01:17]} 21. O-O {[%clk 0:01:14]}  Bb5 {[%clk 0:01:10]} 22. Qd2 {[%clk 0:01:11]}  Nf6 {[%clk 0:01:05]} 23. f3 {[%clk 0:01:10]}  Ne8 {[%clk 0:00:58]} 24. Rfc1 {[%clk 0:01:05]}  Bf6 {[%clk 0:00:58]} 25. Kf2 {[%clk 0:01:02]}  Bxc4 {[%clk 0:00:48]} 26. Rxc4 {[%clk 0:00:59]}  Qd7 {[%clk 0:00:49]} 27. Rcxa4 {[%clk 0:00:57]}  Bd8 {[%clk 0:00:48]} 28. Ra7 {[%clk 0:00:57]}  Rb7 {[%clk 0:00:45]} 29. Rxb7 {[%clk 0:00:55]}  Qxb7 {[%clk 0:00:46]} 30. Ba6 {[%clk 0:00:44]}  Qb8 {[%clk 0:00:45]} 31. Kg3 {[%clk 0:00:32]}  Bb6 {[%clk 0:00:44]} 32. Qb4 {[%clk 0:00:31]}  Bc7 {[%clk 0:00:36]} 33. Qxb8 {[%clk 0:00:31]}  Bxb8 {[%clk 0:00:37]} 34. Bb5 {[%clk 0:00:31]}  Nc7 {[%clk 0:00:35]} 35. Bc6 {[%clk 0:00:32]}  Ne8 {[%clk 0:00:29]} 36. b4 {[%clk 0:00:31]}  Nf6 {[%clk 0:00:29]} 37. b5 {[%clk 0:00:31]}  Rd8 {[%clk 0:00:19]} 38. b6 {[%clk 0:00:31]}  Nd7 {[%clk 0:00:19]} 39. Bxd7 {[%clk 0:00:29]}  Rxd7 {[%clk 0:00:19]} 40. Ra8 {[%clk 0:00:30]}  Rb7 {[%clk 0:00:20]} 41. Kf2 {[%clk 0:00:30]}  Kf8 {[%clk 0:00:19]} 42. Ke2 {[%clk 0:00:30]}  Ke7 {[%clk 0:00:20]} 43. Kd3 {[%clk 0:00:30]}  Kd7 {[%clk 0:00:21]} 44. Kc4 {[%clk 0:00:31]}  Bc7 {[%clk 0:00:20]} 45. Kb5 {[%clk 0:00:27]}  Bxb6 {[%clk 0:00:14]} 46. Bxb6 {[%clk 0:00:28]}  Ke7 {[%clk 0:00:15]} 47. Kc6 {[%clk 0:00:28]}  Rd7 {[%clk 0:00:15]} 48. Rh8 {[%clk 0:00:27]} 1-0


[Site "https://www.chess.com"]

[Event "Titled Tuesday Blitz October 25 Late 2022"]
[White "Makarian, Rudik"]
[Black "Koellner, Ruben Gideon"]
[WhiteFideId "44105681"]
[BlackFideId "12993093"]
[WhiteElo "2405"]
[BlackElo "2303"]
[Result "1-0"]
[Round "08"]
[TimeControl "180+1"]
[Date "2022.10.26"]
[WhiteClock "0:00:13"]
[BlackClock "0:00:07"]

1. Nf3 {[%clk 0:03:00]}  Nf6 {[%clk 0:02:59]} 2. g3 {[%clk 0:03:01]}  d5 {[%clk 0:02:59]} 3. c4 {[%clk 0:03:01]}  e6 {[%clk 0:02:59]} 4. Bg2 {[%clk 0:03:01]}  dxc4 {[%clk 0:02:59]} 5. Qa4+ {[%clk 0:03:01]}  Bd7 {[%clk 0:02:46]} 6. Qxc4 {[%clk 0:03:01]}  c5 {[%clk 0:02:46]} 7. O-O {[%clk 0:03:00]}  Bc6 {[%clk 0:02:46]} 8. Nc3 {[%clk 0:02:59]}  Nbd7 {[%clk 0:02:45]} 9. e4 {[%clk 0:02:58]}  Rc8 {[%clk 0:02:38]} 10. Qe2 {[%clk 0:02:55]}  c4 {[%clk 0:02:25]} 11. b3 {[%clk 0:02:54]}  cxb3 {[%clk 0:02:11]} 12. axb3 {[%clk 0:02:55]}  Bb4 {[%clk 0:02:11]} 13. Rxa7 {[%clk 0:02:49]}  Qb6 {[%clk 0:02:02]} 14. Ra1 {[%clk 0:02:46]}  O-O {[%clk 0:01:34]} 15. e5 {[%clk 0:02:33]}  Nd5 {[%clk 0:01:28]} 16. Ba3 {[%clk 0:02:26]}  Nxc3 {[%clk 0:01:18]} 17. dxc3 {[%clk 0:02:24]}  Bxc3 {[%clk 0:01:13]} 18. Bxf8 {[%clk 0:02:21]}  Nxf8 {[%clk 0:00:40]} 19. Rac1 {[%clk 0:01:31]}  Bb5 {[%clk 0:00:39]} 20. Qc2 {[%clk 0:01:32]}  Bxf1 {[%clk 0:00:37]} 21. Bxf1 {[%clk 0:01:33]}  Rc5 {[%clk 0:00:32]} 22. Bc4 {[%clk 0:01:13]}  Bxe5 {[%clk 0:00:30]} 23. Nxe5 {[%clk 0:01:12]}  Rxe5 {[%clk 0:00:31]} 24. Rd1 {[%clk 0:01:08]}  Qc7 {[%clk 0:00:21]} 25. Qd3 {[%clk 0:01:08]}  g6 {[%clk 0:00:14]} 26. Qd6 {[%clk 0:00:57]}  Qxd6 {[%clk 0:00:13]} 27. Rxd6 {[%clk 0:00:58]}  b5 {[%clk 0:00:13]} 28. Bf1 {[%clk 0:00:58]}  b4 {[%clk 0:00:12]} 29. Rd4 {[%clk 0:00:57]}  Rd5 {[%clk 0:00:08]} 30. Rxb4 {[%clk 0:00:57]}  Nd7 {[%clk 0:00:08]} 31. Re4 {[%clk 0:00:46]}  Rd1 {[%clk 0:00:08]} 32. Re3 {[%clk 0:00:44]}  Rb1 {[%clk 0:00:06]} 33. Kg2 {[%clk 0:00:44]}  Nc5 {[%clk 0:00:06]} 34. Bc4 {[%clk 0:00:45]}  Kg7 {[%clk 0:00:06]} 35. h4 {[%clk 0:00:45]}  h5 {[%clk 0:00:06]} 36. Kf3 {[%clk 0:00:45]}  Rb2 {[%clk 0:00:06]} 37. Re2 {[%clk 0:00:44]}  Rb1 {[%clk 0:00:05]} 38. Re3 {[%clk 0:00:44]}  Rb2 {[%clk 0:00:05]} 39. Kg2 {[%clk 0:00:43]}  Kf6 {[%clk 0:00:05]} 40. Rf3+ {[%clk 0:00:43]}  Ke7 {[%clk 0:00:05]} 41. Re3 {[%clk 0:00:41]}  Kf6 {[%clk 0:00:05]} 42. Rc3 {[%clk 0:00:33]}  Ne4 {[%clk 0:00:04]} 43. Rf3+ {[%clk 0:00:33]}  Ke7 {[%clk 0:00:05]} 44. Kg1 {[%clk 0:00:27]}  Nd2 {[%clk 0:00:05]} 45. Rc3 {[%clk 0:00:28]}  Ne4 {[%clk 0:00:04]} 46. Re3 {[%clk 0:00:20]}  Nxf2 {[%clk 0:00:04]} 47. Re2 {[%clk 0:00:20]}  Rxe2 {[%clk 0:00:04]} 48. Bxe2 {[%clk 0:00:21]}  Ne4 {[%clk 0:00:04]} 49. Kg2 {[%clk 0:00:22]}  Nd6 {[%clk 0:00:04]} 50. Kf3 {[%clk 0:00:22]}  Nc8 {[%clk 0:00:04]} 51. b4 {[%clk 0:00:20]}  Nb6 {[%clk 0:00:04]} 52. Ke3 {[%clk 0:00:20]}  e5 {[%clk 0:00:04]} 53. Kd3 {[%clk 0:00:19]}  Kd6 {[%clk 0:00:05]} 54. Kc3 {[%clk 0:00:16]}  Kd5 {[%clk 0:00:04]} 55. Bf3+ {[%clk 0:00:16]}  e4 {[%clk 0:00:04]} 56. Be2 {[%clk 0:00:16]}  f5 {[%clk 0:00:04]} 57. Bb5 {[%clk 0:00:15]}  Ke5 {[%clk 0:00:04]} 58. Be8 {[%clk 0:00:15]}  Kf6 {[%clk 0:00:03]} 59. Kd4 {[%clk 0:00:15]}  Nc8 {[%clk 0:00:02]} 60. b5 {[%clk 0:00:14]}  Nb6 {[%clk 0:00:01]} 61. Kc5 {[%clk 0:00:13]}  Na4+ {[%clk 0:00:02]} 62. Kb4 {[%clk 0:00:14]}  Nb6 {[%clk 0:00:03]} 63. Kc5 {[%clk 0:00:14]}  Na4+ {[%clk 0:00:03]} 64. Kd4 {[%clk 0:00:15]}  Nb6 {[%clk 0:00:03]} 65. Bc6 {[%clk 0:00:15]}  Na4 {[%clk 0:00:03]} 66. Bd5 {[%clk 0:00:15]}  Nb6 {[%clk 0:00:03]} 67. Bb3 {[%clk 0:00:15]}  Nd7 {[%clk 0:00:03]} 68. Bc2 {[%clk 0:00:14]}  g5 {[%clk 0:00:04]} 69. hxg5+ {[%clk 0:00:11]}  Kxg5 {[%clk 0:00:05]} 70. Kd5 {[%clk 0:00:10]}  Nb6+ {[%clk 0:00:05]} 71. Kc6 {[%clk 0:00:11]}  Nc4 {[%clk 0:00:05]} 72. Kc5 {[%clk 0:00:11]}  Ne5 {[%clk 0:00:05]} 73. Bb3 {[%clk 0:00:09]}  Kg4 {[%clk 0:00:04]} 74. Kd6 {[%clk 0:00:10]}  Nd3 {[%clk 0:00:03]} 75. b6 {[%clk 0:00:10]}  Nb4 {[%clk 0:00:04]} 76. b7 {[%clk 0:00:10]}  Na6 {[%clk 0:00:04]} 77. Bc4 {[%clk 0:00:11]}  Nb8 {[%clk 0:00:04]} 78. Kc7 {[%clk 0:00:11]}  f4 {[%clk 0:00:04]} 79. gxf4 {[%clk 0:00:11]}  Kxf4 {[%clk 0:00:04]} 80. Kxb8 {[%clk 0:00:11]}  h4 {[%clk 0:00:05]} 81. Kc7 {[%clk 0:00:12]}  h3 {[%clk 0:00:06]} 82. b8=Q {[%clk 0:00:12]}  h2 {[%clk 0:00:06]} 83. Kd7+ {[%clk 0:00:12]}  Kf3 {[%clk 0:00:06]} 84. Qxh2 {[%clk 0:00:13]}  e3 {[%clk 0:00:07]} 85. Qe2+ {[%clk 0:00:13]} 1-0


[Site "https://www.chess.com"]

[Event "Titled Tuesday Blitz October 25 Late 2022"]
[White "Malka, Samuel"]
[Black "Jensen, Matthew R"]
[WhiteFideId "20643675"]
[BlackFideId "2018110"]
[WhiteElo "2447"]
[BlackElo "2313"]
[Result "1-0"]
[Round "08"]
[TimeControl "180+1"]
[Date "2022.10.26"]
[WhiteClock "0:00:26"]
[BlackClock "0:00:09"]

1. d4 {[%clk 0:03:00]}  d5 {[%clk 0:02:58]} 2. c4 {[%clk 0:03:01]}  c6 {[%clk 0:02:58]} 3. Nf3 {[%clk 0:03:00]}  e6 {[%clk 0:02:57]} 4. Qc2 {[%clk 0:02:59]}  f5 {[%clk 0:02:55]} 5. Nbd2 {[%clk 0:02:58]}  Nf6 {[%clk 0:02:54]} 6. g3 {[%clk 0:02:58]}  Nbd7 {[%clk 0:02:54]} 7. Bg2 {[%clk 0:02:59]}  Bd6 {[%clk 0:02:54]} 8. O-O {[%clk 0:02:59]}  O-O {[%clk 0:02:54]} 9. Ne1 {[%clk 0:03:00]}  Ne4 {[%clk 0:02:45]} 10. Ndf3 {[%clk 0:03:00]}  g5 {[%clk 0:02:37]} 11. Nd3 {[%clk 0:03:00]}  g4 {[%clk 0:02:37]} 12. Nfe5 {[%clk 0:02:59]}  Nxe5 {[%clk 0:02:28]} 13. dxe5 {[%clk 0:02:56]}  Bc7 {[%clk 0:02:21]} 14. f3 {[%clk 0:02:57]}  gxf3 {[%clk 0:02:16]} 15. exf3 {[%clk 0:02:57]}  Ng5 {[%clk 0:02:12]} 16. cxd5 {[%clk 0:02:50]}  Bb6+ {[%clk 0:02:06]} 17. Kh1 {[%clk 0:02:48]}  cxd5 {[%clk 0:02:05]} 18. Bd2 {[%clk 0:02:23]}  Bd7 {[%clk 0:02:01]} 19. Rac1 {[%clk 0:02:16]}  Bb5 {[%clk 0:01:45]} 20. a4 {[%clk 0:02:15]}  Bxd3 {[%clk 0:01:44]} 21. Qxd3 {[%clk 0:02:16]}  Nf7 {[%clk 0:01:40]} 22. f4 {[%clk 0:02:13]}  Qd7 {[%clk 0:01:38]} 23. a5 {[%clk 0:02:05]}  Bd8 {[%clk 0:01:31]} 24. Bb4 {[%clk 0:02:04]}  Be7 {[%clk 0:01:29]} 25. Bxe7 {[%clk 0:01:54]}  Qxe7 {[%clk 0:01:30]} 26. Qb5 {[%clk 0:01:53]}  Rfc8 {[%clk 0:01:22]} 27. Bf3 {[%clk 0:01:48]}  Nd8 {[%clk 0:01:15]} 28. Kg2 {[%clk 0:01:29]}  Nc6 {[%clk 0:01:06]} 29. a6 {[%clk 0:01:25]}  Nd4 {[%clk 0:01:03]} 30. Qxb7 {[%clk 0:01:15]}  Qd8 {[%clk 0:00:40]} 31. Bh5 {[%clk 0:01:13]}  Rab8 {[%clk 0:00:31]} 32. Rxc8 {[%clk 0:00:55]}  Rxc8 {[%clk 0:00:30]} 33. Rf2 {[%clk 0:00:50]}  Qc7 {[%clk 0:00:29]} 34. Qb4 {[%clk 0:00:37]}  Qc5 {[%clk 0:00:26]} 35. Qb7 {[%clk 0:00:33]}  Qc7 {[%clk 0:00:27]} 36. Rd2 {[%clk 0:00:31]}  Nc6 {[%clk 0:00:21]} 37. Rc2 {[%clk 0:00:28]}  Kf8 {[%clk 0:00:17]} 38. Be2 {[%clk 0:00:26]}  Ke7 {[%clk 0:00:12]} 39. Rxc6 {[%clk 0:00:26]}  Qxb7 {[%clk 0:00:09]} 40. axb7 {[%clk 0:00:27]}  Rxc6 {[%clk 0:00:09]} 41. b8=Q {[%clk 0:00:26]} 1-0


[Site "https://www.chess.com"]

[Event "Titled Tuesday Blitz October 25 Late 2022"]
[White "Omariev, Maksim"]
[Black "Yanayt, Eugene"]
[WhiteFideId "4193423"]
[BlackFideId "2020165"]
[WhiteElo "2406"]
[BlackElo "2046"]
[Result "1-0"]
[Round "08"]
[TimeControl "180+1"]
[Date "2022.10.26"]
[WhiteClock "0:00:03"]
[BlackClock "0:00:01"]

1. b3 {[%clk 0:03:00]}  e5 {[%clk 0:02:59]} 2. Bb2 {[%clk 0:03:01]}  d6 {[%clk 0:02:58]} 3. h3 {[%clk 0:03:02]}  g6 {[%clk 0:02:58]} 4. g4 {[%clk 0:03:03]}  Bg7 {[%clk 0:02:59]} 5. Bg2 {[%clk 0:03:04]}  h5 {[%clk 0:02:57]} 6. gxh5 {[%clk 0:03:04]}  Rxh5 {[%clk 0:02:57]} 7. d3 {[%clk 0:03:04]}  Nc6 {[%clk 0:02:56]} 8. Nd2 {[%clk 0:03:03]}  Nh6 {[%clk 0:02:55]} 9. e3 {[%clk 0:03:03]}  Nf5 {[%clk 0:02:49]} 10. Ngf3 {[%clk 0:03:04]}  Nh4 {[%clk 0:02:46]} 11. Nxh4 {[%clk 0:03:03]}  Qxh4 {[%clk 0:02:46]} 12. Qe2 {[%clk 0:03:02]}  a5 {[%clk 0:02:43]} 13. a3 {[%clk 0:03:01]}  Rf5 {[%clk 0:02:26]} 14. Ne4 {[%clk 0:02:52]}  Be6 {[%clk 0:02:13]} 15. O-O-O {[%clk 0:02:49]}  O-O-O {[%clk 0:02:11]} 16. Ng3 {[%clk 0:02:49]}  Rg5 {[%clk 0:02:10]} 17. Bxc6 {[%clk 0:02:49]}  bxc6 {[%clk 0:02:08]} 18. a4 {[%clk 0:02:37]}  Kd7 {[%clk 0:02:05]} 19. d4 {[%clk 0:02:32]}  exd4 {[%clk 0:02:00]} 20. Bxd4 {[%clk 0:02:33]}  Bh6 {[%clk 0:01:46]} 21. Bf6 {[%clk 0:02:28]}  Qb4 {[%clk 0:01:33]} 22. Rd4 {[%clk 0:02:15]}  Qa3+ {[%clk 0:01:28]} 23. Kd2 {[%clk 0:02:08]}  Rd5 {[%clk 0:00:50]} 24. Rxd5 {[%clk 0:01:58]}  Bxd5 {[%clk 0:00:49]} 25. Ra1 {[%clk 0:01:59]}  Qb4+ {[%clk 0:00:48]} 26. Bc3 {[%clk 0:01:22]}  Qc5 {[%clk 0:00:47]} 27. Qa6 {[%clk 0:01:10]}  Re8 {[%clk 0:00:42]} 28. Re1 {[%clk 0:01:05]}  f5 {[%clk 0:00:29]} 29. Qxa5 {[%clk 0:01:05]}  Qxa5 {[%clk 0:00:24]} 30. Bxa5 {[%clk 0:01:06]}  f4 {[%clk 0:00:24]} 31. Nf1 {[%clk 0:01:06]}  fxe3+ {[%clk 0:00:24]} 32. Nxe3 {[%clk 0:01:07]}  Bg2 {[%clk 0:00:24]} 33. h4 {[%clk 0:01:05]}  Bf3 {[%clk 0:00:23]} 34. Rg1 {[%clk 0:01:03]}  Bh5 {[%clk 0:00:22]} 35. Bc3 {[%clk 0:01:00]}  d5 {[%clk 0:00:22]} 36. Kd3 {[%clk 0:00:52]}  Re4 {[%clk 0:00:20]} 37. Rh1 {[%clk 0:00:25]}  Ke6 {[%clk 0:00:20]} 38. Bd4 {[%clk 0:00:22]}  Bf8 {[%clk 0:00:17]} 39. c4 {[%clk 0:00:08]}  Rf4 {[%clk 0:00:15]} 40. c5 {[%clk 0:00:05]}  Be7 {[%clk 0:00:14]} 41. Rh2 {[%clk 0:00:04]}  Bf3 {[%clk 0:00:12]} 42. b4 {[%clk 0:00:04]}  Be4+ {[%clk 0:00:12]} 43. Kc3 {[%clk 0:00:04]}  Bxh4 {[%clk 0:00:10]} 44. a5 {[%clk 0:00:04]}  Bxf2 {[%clk 0:00:08]} 45. a6 {[%clk 0:00:05]}  Bg3 {[%clk 0:00:07]} 46. Rh8 {[%clk 0:00:04]}  Be1+ {[%clk 0:00:04]} 47. Kb3 {[%clk 0:00:03]}  Rf2 {[%clk 0:00:01]} 48. a7 {[%clk 0:00:03]} 1-0


[Site "https://www.chess.com"]

[Event "Titled Tuesday Blitz October 25 Late 2022"]
[White "Petrova, Irina"]
[Black "Graif, William"]
[WhiteFideId "14124122"]
[BlackFideId "2609835"]
[WhiteElo "2023"]
[BlackElo "2205"]
[Result "0-1"]
[Round "08"]
[TimeControl "180+1"]
[Date "2022.10.26"]
[WhiteClock "0:00:02"]
[BlackClock "0:00:07"]

1. e4 {[%clk 0:03:00]}  e5 {[%clk 0:02:57]} 2. Nf3 {[%clk 0:03:00]}  Bc5 {[%clk 0:02:57]} 3. Bc4 {[%clk 0:02:39]}  Nf6 {[%clk 0:02:57]} 4. O-O {[%clk 0:02:31]}  Nxe4 {[%clk 0:02:53]} 5. d4 {[%clk 0:02:19]}  d5 {[%clk 0:02:45]} 6. dxc5 {[%clk 0:02:01]}  dxc4 {[%clk 0:02:45]} 7. Qe2 {[%clk 0:02:01]}  Nxc5 {[%clk 0:02:44]} 8. Qxe5+ {[%clk 0:01:58]}  Ne6 {[%clk 0:02:43]} 9. Qe4 {[%clk 0:01:45]}  O-O {[%clk 0:02:37]} 10. Nc3 {[%clk 0:01:44]}  Bd7 {[%clk 0:02:01]} 11. Rd1 {[%clk 0:01:37]}  Qe8 {[%clk 0:01:25]} 12. Qxc4 {[%clk 0:01:35]}  Nc6 {[%clk 0:01:14]} 13. Nd5 {[%clk 0:01:23]}  Rd8 {[%clk 0:01:11]} 14. b3 {[%clk 0:01:02]}  Bc8 {[%clk 0:01:07]} 15. Ba3 {[%clk 0:00:56]}  Kh8 {[%clk 0:00:50]} 16. Bxf8 {[%clk 0:00:56]}  Qxf8 {[%clk 0:00:50]} 17. Ne3 {[%clk 0:00:44]}  h6 {[%clk 0:00:43]} 18. Rxd8 {[%clk 0:00:42]}  Qxd8 {[%clk 0:00:44]} 19. Rd1 {[%clk 0:00:42]}  Qf6 {[%clk 0:00:43]} 20. Ng4 {[%clk 0:00:32]}  Qf5 {[%clk 0:00:37]} 21. Rd5 {[%clk 0:00:22]}  Qg6 {[%clk 0:00:28]} 22. Nge5 {[%clk 0:00:20]}  Nxe5 {[%clk 0:00:26]} 23. Nxe5 {[%clk 0:00:21]}  Qf6 {[%clk 0:00:21]} 24. h3 {[%clk 0:00:14]}  b6 {[%clk 0:00:18]} 25. Nf3 {[%clk 0:00:12]}  Bb7 {[%clk 0:00:17]} 26. Rd7 {[%clk 0:00:11]}  Kg8 {[%clk 0:00:15]} 27. Qd3 {[%clk 0:00:10]}  Qa1+ {[%clk 0:00:13]} 28. Kh2 {[%clk 0:00:10]}  Qxa2 {[%clk 0:00:13]} 29. Ne5 {[%clk 0:00:09]}  Qb2 {[%clk 0:00:11]} 30. Nxf7 {[%clk 0:00:08]}  Qf6 {[%clk 0:00:11]} 31. Nd8 {[%clk 0:00:06]}  Qf4+ {[%clk 0:00:10]} 32. Kg1 {[%clk 0:00:06]}  Nc5 {[%clk 0:00:09]} 33. Qc4+ {[%clk 0:00:05]}  Qxc4 {[%clk 0:00:09]} 34. bxc4 {[%clk 0:00:05]}  Nxd7 {[%clk 0:00:09]} 35. Nxb7 {[%clk 0:00:05]}  Kf7 {[%clk 0:00:10]} 36. Nd8+ {[%clk 0:00:04]}  Ke7 {[%clk 0:00:10]} 37. Nc6+ {[%clk 0:00:05]}  Kd6 {[%clk 0:00:11]} 38. Nxa7 {[%clk 0:00:05]}  c6 {[%clk 0:00:10]} 39. f4 {[%clk 0:00:04]}  Kc7 {[%clk 0:00:10]} 40. g4 {[%clk 0:00:03]}  Kb7 {[%clk 0:00:10]} 41. Nb5 {[%clk 0:00:03]}  cxb5 {[%clk 0:00:10]} 42. cxb5 {[%clk 0:00:04]}  Kc7 {[%clk 0:00:10]} 43. Kf2 {[%clk 0:00:04]}  Kd6 {[%clk 0:00:11]} 44. Kf3 {[%clk 0:00:04]}  Kc5 {[%clk 0:00:12]} 45. Ke4 {[%clk 0:00:04]}  Kxb5 {[%clk 0:00:12]} 46. h4 {[%clk 0:00:04]}  Kc5 {[%clk 0:00:12]} 47. f5 {[%clk 0:00:05]}  Kd6 {[%clk 0:00:13]} 48. g5 {[%clk 0:00:05]}  hxg5 {[%clk 0:00:13]} 49. hxg5 {[%clk 0:00:06]}  b5 {[%clk 0:00:13]} 50. Kd4 {[%clk 0:00:06]}  Ne5 {[%clk 0:00:10]} 51. f6 {[%clk 0:00:04]}  gxf6 {[%clk 0:00:10]} 52. gxf6 {[%clk 0:00:05]}  Nd7 {[%clk 0:00:10]} 53. c4 {[%clk 0:00:04]}  b4 {[%clk 0:00:10]} 54. f7 {[%clk 0:00:02]}  Ke7 {[%clk 0:00:08]} 55. c5 {[%clk 0:00:02]}  Nxc5 {[%clk 0:00:07]} 0-1


[Site "https://www.chess.com"]

[Event "Titled Tuesday Blitz October 25 Late 2022"]
[White "Petrovic, Aleksa"]
[Black "Sargsyan, Anna M."]
[WhiteFideId "967629"]
[BlackFideId "13308130"]
[WhiteElo "2242"]
[BlackElo "2284"]
[Result "0-1"]
[Round "08"]
[TimeControl "180+1"]
[Date "2022.10.26"]
[WhiteClock "0:00:01"]
[BlackClock "0:00:35"]

1. e4 {[%clk 0:03:00]}  c6 {[%clk 0:02:57]} 2. f3 {[%clk 0:02:59]}  d5 {[%clk 0:02:58]} 3. d4 {[%clk 0:02:59]}  dxe4 {[%clk 0:02:58]} 4. fxe4 {[%clk 0:02:59]}  e5 {[%clk 0:02:59]} 5. Nf3 {[%clk 0:02:59]}  Bg4 {[%clk 0:02:59]} 6. Bc4 {[%clk 0:02:55]}  Nd7 {[%clk 0:02:59]} 7. O-O {[%clk 0:02:53]}  Ngf6 {[%clk 0:02:59]} 8. c3 {[%clk 0:02:37]}  Bd6 {[%clk 0:02:59]} 9. Nbd2 {[%clk 0:02:30]}  O-O {[%clk 0:02:58]} 10. h3 {[%clk 0:02:30]}  Bh5 {[%clk 0:02:57]} 11. g4 {[%clk 0:02:23]}  Bg6 {[%clk 0:02:57]} 12. Nh4 {[%clk 0:02:18]}  Qc7 {[%clk 0:02:51]} 13. Nxg6 {[%clk 0:02:05]}  hxg6 {[%clk 0:02:52]} 14. Qf3 {[%clk 0:01:59]}  Rae8 {[%clk 0:02:51]} 15. Nb3 {[%clk 0:01:53]}  exd4 {[%clk 0:02:50]} 16. cxd4 {[%clk 0:01:47]}  Nxe4 {[%clk 0:02:37]} 17. Bxf7+ {[%clk 0:01:22]}  Kh8 {[%clk 0:02:37]} 18. Qg2 {[%clk 0:01:17]}  Ng3 {[%clk 0:02:33]} 19. Bxe8 {[%clk 0:00:45]}  Rxf1+ {[%clk 0:02:31]} 20. Qxf1 {[%clk 0:00:45]}  Nxf1 {[%clk 0:02:32]} 21. Kxf1 {[%clk 0:00:41]}  Qd8 {[%clk 0:02:21]} 22. Bxd7 {[%clk 0:00:35]}  Qxd7 {[%clk 0:02:22]} 23. Be3 {[%clk 0:00:31]}  Qf7+ {[%clk 0:02:18]} 24. Kg2 {[%clk 0:00:24]}  Qd5+ {[%clk 0:02:16]} 25. Kf2 {[%clk 0:00:21]}  a5 {[%clk 0:02:10]} 26. Nd2 {[%clk 0:00:19]}  c5 {[%clk 0:02:04]} 27. Nf3 {[%clk 0:00:16]}  cxd4 {[%clk 0:02:04]} 28. Bxd4 {[%clk 0:00:16]}  Bc5 {[%clk 0:02:03]} 29. Rd1 {[%clk 0:00:14]}  Bxd4+ {[%clk 0:02:01]} 30. Rxd4 {[%clk 0:00:15]}  Qc5 {[%clk 0:02:02]} 31. Kg3 {[%clk 0:00:15]}  g5 {[%clk 0:01:58]} 32. Re4 {[%clk 0:00:12]}  Qc7+ {[%clk 0:01:52]} 33. Kf2 {[%clk 0:00:09]}  Qc2+ {[%clk 0:01:52]} 34. Re2 {[%clk 0:00:07]}  Qc5+ {[%clk 0:01:52]} 35. Kg2 {[%clk 0:00:06]}  g6 {[%clk 0:01:49]} 36. Re5 {[%clk 0:00:05]}  Qc2+ {[%clk 0:01:49]} 37. Kg3 {[%clk 0:00:05]}  Qxb2 {[%clk 0:01:49]} 38. Rxa5 {[%clk 0:00:04]}  b6 {[%clk 0:01:46]} 39. Rxg5 {[%clk 0:00:04]}  Kh7 {[%clk 0:01:42]} 40. Re5 {[%clk 0:00:04]}  Qxa2 {[%clk 0:01:40]} 41. Re7+ {[%clk 0:00:03]}  Kg8 {[%clk 0:01:40]} 42. Rb7 {[%clk 0:00:04]}  Qe6 {[%clk 0:01:37]} 43. Rb8+ {[%clk 0:00:04]}  Kg7 {[%clk 0:01:33]} 44. Rb7+ {[%clk 0:00:04]}  Kf8 {[%clk 0:01:33]} 45. Rb8+ {[%clk 0:00:04]}  Ke7 {[%clk 0:01:32]} 46. Rb7+ {[%clk 0:00:04]}  Kd8 {[%clk 0:01:32]} 47. Rb8+ {[%clk 0:00:05]}  Kc7 {[%clk 0:01:32]} 48. Rf8 {[%clk 0:00:05]}  Qd6+ {[%clk 0:01:30]} 49. Rf4 {[%clk 0:00:05]}  b5 {[%clk 0:01:30]} 50. g5 {[%clk 0:00:05]}  b4 {[%clk 0:01:29]} 51. Nd4 {[%clk 0:00:05]}  Qe5 {[%clk 0:01:20]} 52. Kg4 {[%clk 0:00:04]}  Kb6 {[%clk 0:01:12]} 53. Rf6+ {[%clk 0:00:04]}  Kc5 {[%clk 0:01:09]} 54. Nf3 {[%clk 0:00:04]}  Qe4+ {[%clk 0:01:06]} 55. Rf4 {[%clk 0:00:05]}  Qe6+ {[%clk 0:01:04]} 56. Kg3 {[%clk 0:00:05]}  b3 {[%clk 0:01:01]} 57. Nd4 {[%clk 0:00:03]}  Qe3+ {[%clk 0:01:01]} 58. Rf3 {[%clk 0:00:02]}  Qxg5+ {[%clk 0:01:00]} 59. Kf2 {[%clk 0:00:01]}  Qd2+ {[%clk 0:00:53]} 60. Kg3 {[%clk 0:00:02]}  Kxd4 {[%clk 0:00:45]} 61. Rxb3 {[%clk 0:00:02]}  Qe1+ {[%clk 0:00:44]} 62. Kg2 {[%clk 0:00:02]}  Ke4 {[%clk 0:00:40]} 63. Rg3 {[%clk 0:00:01]}  Kf4 {[%clk 0:00:35]} 0-1


[Site "https://www.chess.com"]